{"text_format":"3","workbook":"xlsx","n_sheets":1,"sheets":["A&W BoQ"],"not_rendered":{"images":1,"defined_names":1},"read":"whole","date_system":"1900"}

{"sheet":"A&W BoQ","index":0,"n_rows":1159,"n_cols":6,"rows_kept":1159,"merged":[[1,0,1,5],[2,0,2,5],[3,1,3,4],[5,0,5,5],[6,0,6,5],[1143,1,1143,2],[1144,1,1144,2],[1145,1,1145,2],[1146,1,1146,4],[1154,0,1154,5]]}
[]
["SUPPLIER PARK DEVELOPMENT COMPANY T/A AIDC"]
["CONTRACT AIDC_T05_2024/25"]
[null,"AS AND WHEN CIVILS & STRUCTURAL WORKS FOR THE PERIOD OF 36 MONTHS AT THE SUPPLIER PARK DEVELOPMENT COMPANY SOC LTD T/A AIDC FOR THE FOLLOWING DIFFERENT SITES, NAMELY:  \n\n1)\tAUTOMOTVE SUPPLIER PARK (ASP) - ROSSLYN\n2)\tAUTOMOTIVE INCUBATION CENTRE (AIC) - SILVERTON\n3)\tWINTERVELD ENTERPRISE HUB - WINTERFELDT\n4)\tGAUTENG LEARNING CENTRE (GALC) - ROSSLYN\n5)\tCHAMDOR AUTOMOTIVE HUB - KRUGERSDORP"]
[]
["PROVISIONAL BILLS OF QUANTITIES"]
["Bidder to complete ONLY Column E (unit Price)"]
["ITEM NO","DESCRIPTION","UNIT","QTY","RATE","AMOUNT"]
[]
[null,"BILL No. 1"]
[]
[null,"ALTERATIONS"]
[]
[null,"PREAMBLES"]
[]
[null,"For preambles refer to \"Model Preambles for Trades\""]
[]
[null,"SUPPLEMENTARY PREAMBLES"]
[]
[null,"Demolitions and Works on Site"]
[]
[null,"All demolitions and works on site must be carried out carefully and in the safest possible manner and the Contractor is to make a thorough examination and take all necessary precautions before proceeding with the work.  The utmost care is to be observed to avoid any structural or other damage in the remaining portions of the existing building  Special care is to be exercised not to interfere with any electrical installation, and notice is to be given to the Representative/Agent when any disconnections, removal of wires, etc. necessary and the Contractor is to afford every facility to the workmen carrying out his work  The Contractor shall not remove or interfere with any furniture, fittings or similar articles unless specially mentioned in the following items and shall give adequate notice to the Representative/Agent of the removal of any articles from parts of the building are to be altered becomes necessary so that the Employer may have same removed before the Contractor commences work in such parts  The Contractor will be held solely responsible for any damage to persons and property and for the safety of the structures and must make good at his expense any damage that may occur "]
[]
[null,"Old materials to become property of the contractor"]
[]
[null,"Old materials from alterations except where described to be re-used or handed over, become the property of the contractor"]
[]
[null,"Old materials to be carted away"]
[]
[null,"Old materials from alterations except where described as re-used or handed over, as well as all rubbish, etc. must be regularly carted from the site and not be allowed to accumulate on or around the site."]
[]
[null,"Old materials to be re-used"]
[]
[null,"None of the old materials are to be used for new work except where specifically described as being set aside for re-use."]
[]
[null,"Handing over of materials"]
[]
[null,"Where certain materials or articles from demolitions or alterations are described as to be handed over by the contractor to the Department's Representative or Representative/Agent such materials or articles shall be properly stored by the contractor until handing over thereof. The contractor must obtain an official receipt listing the materials or articles and dates of handover. If the contractor fails to submit the receipt when requested to do so it shall be deemed that the materials or articles are still in his possession and he will be held liable to the Department for the full replacement value thereof which amount will be deducted from any monies due to the contractor."]
[]
[null,"General"]
[]
[null,"The contractor shall carry out the whole works with as little mess and noise as possible and with a minimum of disturbance to the occupants of the building. The contractor shall provide proper protection and provide, erect and remove when directed, any temporary tarpaulins that may be necessary during the progress of the works, all to the satisfaction of the Project Manager"]
[]
[null,"Water supply pipes and other piping that may be encountered and found necessary to disconnect or cut, shall be effectually stopped off or grubbed up and removed, and any new connections that may be necessary shall be made with proper fittings, to the satisfaction of the principal agent"]
[]
[null,"Doors, fanlights, fittings, frames, linings, etc. which are to be re-used shall be thoroughly overhauled before refixing including taking off, easing and rehanging, cramping up, re-wedging as required and making good cramps, dowels, etc, and easing, oiling, adjusting and repairing ironmongery as necessary, replacing any glass damaged in removal or subsequently and stopping up all nail and screw holes with tinted plastic wood to match timber, unless otherwise described. Re-painting or re-varnishing is given separately"]
[]
[null,"Prices for taking out of doors, windows, etc. shall include for removal of all beads, architraves, ironmongery, etc."]
[]
[null,"Prices for taking out and removing doors and frames shall include for removing door stops, cabin hooks, etc. and making good floor and wall finishes to match existing"]
[]
[null,"With regard to building up of openings in existing walls, cement screeds and pavings, granolithic, tops of walls, etc, shall be levelled and prepared for raising of brickwork"]
[]
[null,"Making good of finishes shall include making good of the brick and concrete surfaces onto which the new finishes are applied, where necessary"]
[]
[null,"The contractor will be required to take all dimensions affecting the existing buildings on the site and he will be held solely responsible for the accuracy of all such dimensions where used in the manufacture of new items (doors, windows, fittings, etc.)"]
[]
[null,"REMOVAL OF EXISTING WORK"]
[]
[null,"BUDGETARY ALLOWANCES\n\nThe following budgetary allowances to be measured\nin accordance with the aforegoing and priced at\nscheduled rates"]
[]
[null,"Allow for removal of existing works contingencies to be used\nas directed by the principal agent and to be measured in\naccordance with the aforegoing and priced at scheduled\nrates","Item",1,null,{"v":300000,"d":"R300,000.00"}]
[]
[1,"Breaking down and removing unreinforced concrete:"]
[]
[null,"150mm Concrete surface bed","m2",1,0,{"$f":"E66*D66","v":0}]
[]
[2,"Breaking up and removing reinforced concrete, including cutting off and removing reinforcement:"]
[]
[null,"250mm Thick slabs","m2",1,0,{"$f":"E70*D70","v":0}]
[]
[3,"Breaking down and removing brickwork etc"]
[]
[null,"Half brick wall","m2",1,0,0]
[]
[4,"One brick wall","m2",1,0,0]
[]
[5,"Taking out and removing doors, windows, etc from brickwork to be demolished"]
[]
[null,"Timber single door and steel frame not exceeding 2,5m2","No",1,0,0]
[]
[6,"Taking out and removing doors, windows, etc. including thresholds, cills, etc:"]
[]
[null,"Timber single door and steel frame not exceeding 2,5m²","No",1,0,0]
[]
[7,"Cut out steel window sections leaving the sub-frame only and prepare sub-frame to receive new aluminium casement system windows (new aluminium casement system windows elsewhere measured):"]
[]
[null,"Steel window size 1 500 x 1 000mm high overall","No",1,0,0]
[]
[8,"Taking down and removing roofs, floors, panelling, ceilings, partitions, etc"]
[]
[null,"corrugated roof sheeting including tiles, fascia, gutters, etc complete (area measured on flat)","m2",1,0,0]
[]
[9,"Corrugated roof sheets","m2",1,0,0]
[]
[10,"Gypsum plasterboard ceilings including cornices, timber brandering, etc","m2",1,0,0]
[]
[11,"Rainwater goods and replace with new (e.m)","m",1,0,0]
[]
[12,"Take down and remove fascias and replace with new (new elsewhere)","m",1,0,0]
[]
[13,"Carefully remove existing waterproofing from concrete flat roof and prepare surfaces for new waterproofing","m2",1,0,0]
[]
[14,"Taking off and removing skirtings:"]
[]
[null,"Timber skirtings from brickwork","m",1,0,0]
[]
[15,"Hacking up/off and removing ceramic tile floor and wall finishes including removing mortar bed or backing and preparing concrete or brick surfaces for new screed, plaster or tile finishes"]
[]
[16,"Tiles to floors","m2",1,0,0]
[]
[17,"Tiles to walls","m2",1,0,0]
[]
[null,"Taking up and removing vinyl floor coverings, carpeting, etc:"]
[]
[18,"Carpet floor covering including preparing screed for new carpet, vinyl sheeting or tile etc. (new floor finish elsewhere)","m2",1,0,0]
[]
[null,"Taking  out and removing piping, sanitary fittings, etc including disconnecting  piping  from fittings  and  making good floor and wall finishes (making good tiling and paintwork elsewhere)"]
[]
[19,"Vitreous china wash hand basin","No",1,0,0]
[]
[20,"Vitreous china WC pan with cistern","No",1,0,0]
[]
[21,"Stainless steel urinal 2000 x 1200mm high including breaking up and removing 400mm wide concrete urinal step","No",1,0,0]
[]
[null,"Remove and replace ironmongery:"]
[]
[22,"Brass window sliding stays","No",1,0,0]
[]
[null,"Taking out and removing glass and mirrors:"]
[]
[23,"Glass from steel windows including cleaning out rebates and preparing for new glass","m2",1,0,{"$f":"E132*D132","v":0}]
[]
[24,"Mirror 400 x 600mm high from wall","No",1,0,0]
[]
[null,"BUILDING UP OPENINGS"]
[]
[null,"Brickwork in NFP bricks in class II mortar in building up openings"]
[]
[25,"One brick walls","m2",1,0,0]
[]
[null,"Sundries"]
[]
[26,"Cutting toothings and bonding new brickwork to existing","m2",1,0,0]
[]
[null,"MAKING GOOD OF FINISHES ETC"]
[]
[null,"Making good screed"]
[]
[27,"Floors where one brick walls removed","m",1,0,0]
[]
[28,"Making good defects in existing screeded floors with \"Pavelite\"","m2",1,0,0]
[]
[null,"Making good cement plaster:"]
[]
[29,"Face of walls where one brick walls removed","m",1,0,0]
[]
[null,"CUTTING THROUGH FLOORS AND CEILINGS"]
[]
[30,"Cutting through 150mm thick concrete surface bed for 700mm wide concrete wall footing including making good concrete on both sides of new one brick wall","m",1,0,0]
[]
[31,"Cutting through premix and layer works for 750mm wide x 250mm thick concrete thickening under half brick wall  (making good elsewhere)","m",1,0,0]
[]
[null,"OPENINGS THROUGH EXISTING WALLS ETC"]
[]
[null,"Breaking out for and forming plain openings through brick walls, including prestressed concrete lintels, making good cement plaster on both sides and into reveals with steel trowelled finish (making good paintwork elsewhere):"]
[]
[32,"Opening for single door 813 x 2032mm high","No",1,0,0]
[]
[null,"HIGH PRESSURE CLEANING"]
[]
[null,"High pressure cleaning to existing metal, face brick, plastered surfaces and brick paving"]
[]
[33,"Metal roof sheeting","m2",1,0,0]
[]
[34,"Ceramic floor tiles","m2",1,0,0]
[]
[null,"SERVICING OF WINDOWS, DOORS, PLUMBING, ETC."]
[]
[null,"Attend to, service, re-align and repair as necessary all steel windows including replacing any defective or missing parts:"]
[]
[35,"Window size approximately 1 500 x 1 500mm high overall ","No",1,0,0]
[]
[null,"STRUCTURAL REPAIRS"]
[]
[null,"Repair concrete spalling using \"Sika MonoTop-615 HB\" or similar approved in accordance with manufacturer's specification"]
[]
[36,"Concrete spalling to edges of overhead slabs and beams","m2",1,0,0]
[]
[null,"Clean and prepare substrate and apply 'Sikadur - 52' or similar approved crack injection system, all in accordance with manufacturer's instructions:"]
[]
[37,"Repair cracks in brick walls","m",1,0,0]
[]
[null,"SUNDRIES"]
[]
[38,"Clean off graffitti from walls using \"Plascon Remove All\"","m2",1,0,{"$f":"E196*D196","v":0}]
[]
[null,"TOTAL ALTERATIONS",{"$nulls":3},{"$f":"SUM(F62:F197)","v":{"v":300000,"d":"R300,000.00"}}]
[]
[]
[null,"BILL No. 2"]
[]
[null,"EARTHWORKS"]
[]
[null,"PREAMBLES"]
[]
[null,"For preambles refer to \"Model Preambles for Trades\""]
[]
[null,"EXCAVATION, FILLING, ETC OTHER THAN BULK"]
[]
[null,"BUDGETARY ALLOWANCES\n\nThe following budgetary allowances to be measured\nin accordance with the aforegoing and priced at\nscheduled rates"]
[]
[null,"Allow for general excavation works contingencies to be used\nas directed by the principal agent and to be measured in\naccordance with the aforegoing and priced at scheduled\nrates","Itm",1,null,{"v":200000,"d":"R200,000.00"}]
[]
[null,"Excavation in earth not exceeding 2m deep:"]
[]
[1,"Trenches","m3",1,0,{"$f":"E217*D217","v":0}]
[]
[2,"Holes","m3",1,0,{"$f":"E219*D219","v":0}]
[]
[3,"Trenches and holes for thickening under surface beds etc.","m3",1,0,0]
[]
[null,"Extra over trench and hole excavations in earth for breaking up and removing"]
[]
[4,"Brickwork","m3",1,0,0]
[]
[5,"Unreinforced concrete","m3",1,0,0]
[]
[6,"Reinforced concrete","m3",1,0,0]
[]
[null,"Extra over all excavations for carting away"]
[]
[7,"Surplus material from excavations and/or stock piles on site to a dumping site to be located by the contractor","m3",1,0,0]
[]
[null,"Risk of collapse of excavations"]
[]
[8,"Sides of trench and hole excavations not exceeding 1,5m deep","m2",1,0,{"$f":"E237*D237","v":0}]
[]
[null,"Keeping excavations free of water"]
[]
[9,"Keeping excavations free of all water other than subterranean water","Item",1,0,0]
[]
[null,"Earth filling supplied by the contractor compacted to 98% Mod AASHTO density"]
[]
[10,"Backfilling to trenches, holes, etc.","m3",1,0,0]
[]
[null,"Garden soil filling supplied by the contractor"]
[]
[11,"In flower boxes","m3",1,0,0]
[]
[null,"TOTAL EARTHWORKS",{"$nulls":3},{"$f":"SUM(F213:XFD249)","v":{"v":200000,"d":"R200,000.00"}}]
[]
[]
[]
[null,"BILL No. 3"]
[]
[null,"CONCRETE, FORMWORK AND REINFORCEMENT"]
[]
[null,"PREAMBLES"]
[]
[null,"For preambles refer to \"Model Preambles for Trades\""]
[]
[null,"Contractors are to take note of the local procurement\nrequirement in this section of the work"]
[]
[null,"BUDGETARY ALLOWANCES\n\nThe following budgetary allowances to be measured\nin accordance with the aforegoing and priced at\nscheduled rates"]
[]
[null,"Allow for general concrete works contingencies to be used\nas directed by the principal agent and to be measured in\naccordance with the aforegoing and priced at scheduled\nrates","Item",1,null,{"v":200000,"d":"R200,000.00"}]
[]
[null,"REINFORCED CONCRETE"]
[]
[null,"25MPa/19mm concrete"]
[]
[1,"Slabs including beams and inverted beams","m3",1,0,{"$f":"E273*D273","v":0}]
[]
[2,"Ramp","m3",1,0,0]
[]
[3,"Strip footings","m3",1,0,0]
[]
[4,"Columns in foundations","m3",1,0,0]
[]
[5,"Columns","m3",1,0,0]
[]
[null,"REINFORCED CONCRETE CAST AGAINST EXCAVATED SURFACES"]
[]
[null,"25MPa/19mm concrete:"]
[]
[6,"Bases","m3",1,0,0]
[]
[7,"Surface beds on waterproofing","m3",1,0,0]
[]
[null,"ROUGH FORMWORK (DEGREE OF ACCURACY III)"]
[]
[null,"Rough formwork to sides"]
[]
[8,"Bases","m2",1,0,0]
[]
[9,"Rectangular columns in foundations","m2",1,0,0]
[]
[10,"Rectangular columns","m2",1,0,0]
[]
[11,"Beams","m2",1,0,0]
[]
[12,"Edges, risers, ends and reveals not exceeding 300mm high or wide","m",1,0,0]
[]
[null,"Rough formwork to soffits:"]
[]
[13,"Slabs propped up exceeding 1,5m and not exceeding 3,5m high","m2",1,0,0]
[]
[14,"Beams propped up exceeding 1,5m and not exceeding 3,5m high","m2",1,0,0]
[]
[null,"MOVEMENT JOINTS ETC."]
[]
[null,"Malthoid slip joints between horizontal concrete and brick surfaces including cement mortar bed:"]
[]
[15,"Not exceeding 300mm wide","m",1,0,0]
[]
[null,"REINFORCEMENT"]
[]
[null,"Steel reinforcement to structural concrete work:"]
[]
[16,"Various diameter bars","t",1,0,0]
[]
[null,"Fabric reinforcement:"]
[]
[17,"Type 395 fabric reinforcement in concrete surface beds, slabs, etc","m2",1,0,0]
[]
[null,"TOTAL CONCRETE, FORMWORK AND REINFORCEMENT",{"$nulls":3},{"$f":"SUM(F267:F326)","v":{"v":200000,"d":"R200,000.00"}}]
[]
[]
[null,"BILL No. 4"]
[]
[null,"MASONRY"]
[]
[null,"PREAMBLES"]
[]
[null,"For preambles refer to \"Model Preambles for Trades\""]
[]
[null,"SUPPLEMENTARY PREAMBLES"]
[]
[null,"BRICKWORK"]
[]
[null,"Sizes in descriptions"]
[]
[null,"Where sizes in descriptions are given in brick units, \"one brick\" shall represent the length and \"half brick\" the width of a brick"]
[]
[null,"Hollow walls etc "]
[]
[null,"Descriptions of hollow walls shall be deemed to include leaving every fifth perpend of the bottom course of the external skin open as a weep hole. "]
[]
[null,"BUDGETARY ALLOWANCES\n\nThe following budgetary allowances to be measured\nin accordance with the aforegoing and priced at\nscheduled rates"]
[]
[null,"Allow for general masonry works contingencies to be used\nas directed by the principal agent and to be measured in\naccordance with the aforegoing and priced at scheduled\nrates","Item",1,null,{"v":350000,"d":"R350,000.00"}]
[]
[null,"FOUNDATIONS"]
[]
[null,"Brickwork of NFX bricks (14 MPa nominal compressive strength) in class I mortar"]
[]
[1,"One brick walls","m2",1,0,{"$f":"E358*D358","v":0}]
[]
[2,"280mm Hollow walls of two half brick skins including wire ties and filling 60mm cavity solid with 15MPa/19mm stone unreinforced concrete","m2",1,0,{"$f":"E360*D360","v":0}]
[]
[null,"SUPERSTRUCTURE"]
[]
[null,"Brickwork of NFP bricks in class II mortar"]
[]
[3,"Half brick walls","m2",1,0,{"$f":"E366*D366","v":0}]
[]
[4,"One brick walls","m2",1,0,{"$f":"E368*D368","v":0}]
[]
[5,"280mm Hollow walls of two half brick skins including wire ties","m2",1,0,{"$f":"E370*D370","v":0}]
[]
[null,"BRICKWORK SUNDRIES"]
[]
[6,"Closing 60mm cavity of hollow wall vertically with brickwork half brick wide","m",1,0,{"$f":"E374*D374","v":0}]
[]
[7,"Closing 60mm cavity of hollow wall horizontally with one course of brickwork","m",1,0,{"$f":"E376*D376","v":0}]
[]
[null,"Brickwork reinforcement"]
[]
[8,"75mm Wide reinforcement built in horizontally","m",1,0,{"$f":"E380*D380","v":0}]
[]
[9,"150mm Wide reinforcement built in horizontally","m",1,0,{"$f":"E382*D382","v":0}]
[]
[null,"Prestressed fabricated lintels:"]
[]
[10,"110 x 75mm Lintels in lengths not exceeding 3m","m",1,0,{"$f":"E386*D386","v":0}]
[]
[11,"150 x 70mm Lintels in lengths not exceeding 3m","m",1,0,{"$f":"E388*D388","v":0}]
[]
[null,"TOTAL MASONRY",{"$nulls":3},{"$f":"SUM(F352:XFD388)","v":{"v":350000,"d":"R350,000.00"}}]
[]
[]
[null,"BILL No. 5"]
[]
[null,"WATERPROOFING"]
[]
[null,"SUPPLEMENTARY PREAMBLES"]
[]
[null,"Waterproofing"]
[]
[null,"Waterproofing of roofs, basements, etc shall be laid under a ten year guarantee.  Waterproofing to roofs shall be laid to even falls to outlets etc with necessary ridges, hips and valleys. Descriptions of sheet or membrane waterproofing shall be deemed to include additional labour to turn-ups and turn-downs"]
[]
[null,"BUDGETARY ALLOWANCES\n\nThe following budgetary allowances to be measured\nin accordance with the aforegoing and priced at\nscheduled rates"]
[]
[null,"Allow for general waterproofing works contingencies to be used\nas directed by the principal agent and to be measured in\naccordance with the aforegoing and priced at scheduled\nrates","Item",1,null,{"v":250000,"d":"R250,000.00"}]
[]
[null,"DAMPPROOFING OF WALLS AND FLOORS"]
[]
[null,"One layer of 375 micron embossed polyethlene damp proof course:"]
[]
[1,"In walls","m2",1,0,{"$f":"E411*D411","v":0}]
[]
[null,"One layer of 250 micron waterproof sheeting sealed at laps Pressure Sensitive Tape:"]
[]
[2,"Under surface beds","m2",1,0,{"$f":"E415*D415","v":0}]
[]
[null,"WATERPROOFING BASEMENTS, ROOFS, BALCONIES, ETC."]
[]
[null,"Prime surface with bitumen primer and apply one layer \"Derbigum SP4\" or similar approved waterproofing membrane with 75mm side laps and 100mm end laps, sealed to primed surface to falls and cross falls by \"torchfusion\" laid in accordance with manufacturer's instructions: "]
[]
[3,"On flat roofs","m2",1,0,{"$f":"E421*D421","v":0}]
[]
[4,"On turn-ups and turn-downs not exceeding 300mm girth","m",1,0,{"$f":"E423*D423","v":0}]
[]
[5,"On bottoms and sides of floor ducts, channels, etc.","m2",1,0,{"$f":"E425*D425","v":0}]
[]
[6,"Additional membrane and sealing into 100mm diameter outlet","No",1,0,{"$f":"E427*D427","v":0}]
[]
[null,"PROTECTIVE ROOFING PAINT"]
[]
[null,"Two coats \"Silvakote\" or similar approved bituminous aluminium paint:"]
[]
[7,"On waterproofing to roofs","m2",1,0,{"$f":"E433*D433","v":0}]
[]
[null,"TOTAL WATERPROOFING",{"$nulls":3},{"$f":"SUM(F405:XFD433)","v":{"v":250000,"d":"R250,000.00"}}]
[]
[]
[null,"BILL No. 6"]
[]
[null,"ROOF COVERINGS ETC"]
[]
[null,"PREAMBLES"]
[]
[null,"For preambles refer to \"Model Preambles for Trades\""]
[]
[null,"Contractors to take note of the local procurement\nrequirement in this category of works"]
[]
[null,"BUDGETARY ALLOWANCES\n\nThe following budgetary allowances to be measured\nin accordance with the aforegoing and priced at\nscheduled rates"]
[]
[null,"Allow for general roof covering works contingencies to be used\nas directed by the principal agent and to be measured in\naccordance with the aforegoing and priced at scheduled\nrates","Item",1,null,{"v":250000,"d":"R250,000.00"}]
[]
[null,"PROFILED METAL SHEETING AND ACCESSORIES"]
[]
[null,"Safintra Saflok 700 - 0.53mm thick ColourPlus, concealed fix roof sheeting profile, colour to be confirmed, C.1.S finish with standard backing coat G550 interlocking roof sheeting with AZ150 spelter to both sides fixed to  steel purlins using Saflok 700 clips screw fixed to steel purlins secured with 10x16mm or 12x25mm wafer head screws, all in accordance with the manufacturers recommendations. "]
[]
[1,"Roof covering ","m2",1,0,{"$f":"E456*D456","v":0}]
[]
[2,"Curved roof covering with a diameter not exceeding 6m","m2",1,0,0]
[]
[3,"Roof covering with pitch not exceeding 25 degrees","m2",1,0,0]
[]
[4,"Side wall flashing size 154x270x38mm","m",1,0,0]
[]
[5,"Headwall flashing size 154x308mm","m",1,0,0]
[]
[6,"Counter flashing size 13x30x142mm","m",1,0,0]
[]
[7,"External corner closure size 330x330x38x38mm","m",1,0,{"$f":"E468*D468","v":0}]
[]
[8,"Valley flashing size 231x231mm","m",1,0,{"$f":"E470*D470","v":0}]
[]
[null,"1.2mm \"IBR\"  profile semi-opaque 50% light transmission polycarbonate sheeting with 171mm end laps fixed to timber/steel purlins or rails"]
[]
[9,"Curved roof covering with a diameter not exceeding 6m ","m2",1,0,{"$f":"E474*D474","v":0}]
[]
[10,"Side cladding","m2",1,0,{"$f":"E476*D476","v":0}]
[]
[]
[null,"ROOF AND WALL INSULATION"]
[]
[null,"Sisalation FR430 heavy industrial grade aluminium foil based insulation"]
[]
[15,"Insulation size 135mm laid over purlins (at approximately 1000mm centres) and fixed concurrent with roof covering including galvanised steel straining wires","m2",1,0,{"$f":"E483*D483","v":0}]
[]
[null,"TOTAL ROOF COVERINGS ",{"$nulls":3},{"$f":"SUM(F450:XFD483)","v":{"v":250000,"d":"R250,000.00"}}]
[]
[]
[null,"BILL No. 7"]
[]
[null,"CARPENTRY AND JOINERY"]
[]
[null,"PREAMBLES"]
[]
[null,"For preambles refer to \"Model Preambles for Trades\""]
[]
[null,"SUPPLEMENTARY PREAMBLES"]
[]
[null,"Fixing"]
[]
[null,"Items described as \"nailed\" shall be deemed to be fixed with hardened steel nails or shot pins to brickwork or concrete"]
[]
[null,"BUDGETARY ALLOWANCES\n\nThe following budgetary allowances to be measured\nin accordance with the aforegoing and priced at\nscheduled rates"]
[]
[1,"Allow for general carpentry and joinery works contingencies to be used as directed by the principal agent and to be measured in\naccordance with the aforegoing and priced at scheduled\nrates","Item",1,null,{"v":450000,"d":"R450,000.00"}]
[]
[null,"EAVES, VERGES, ETC"]
[]
[null,"Everite Flexit pressed nutec-cement"]
[]
[1,"15 x 200mm Fascias and barge boards including PVC H-profile jointing strips","m",1,0,{"$f":"E510*D510","v":0}]
[]
[null,"Everite Flexit pressed nutec-cement"]
[]
[2,"Eaves soffit covering 500mm wide of 9mm thick sheets (branders elsewhere)","m2",1,0,{"$f":"E514*D514","v":0}]
[]
[null,"DOORS ETC"]
[]
[null,"Semi-solid flush doors with commercial veneer"]
[]
[3,"40mm Door 813 x 2032mm high","No",1,0,{"$f":"E520*D520","v":0}]
[]
[4,"40mm Door 813 x 2 032mm high with 100mm undercut","No",1,0,{"$f":"E522*D522","v":0}]
[]
[null,"Wrought meranti doors"]
[]
[5,"40mm thick BDB framed, ledged and battened ply back hardwood door with lock rail, size 813 x 2032mm high","No",1,0,{"$f":"E526*D526","v":0}]
[]
[null,"FRAMED FRAMES ETC"]
[]
[null,"Wrought meranti"]
[]
[6,"90 x 75mm Rebated frames","m",1,0,{"$f":"E532*D532","v":0}]
[]
[null,"SKIRTINGS"]
[]
[null,"Wrought meranti:"]
[]
[7,"19 x 70mm High skirting","m",1,0,{"$f":"E538*D538","v":0}]
[]
[null,"TOTAL CARPENTRY AND JOINERY",{"$nulls":3},{"$f":"SUM(F504:XFD538)","v":{"v":450000,"d":"R450,000.00"}}]
[]
[]
[null,"BILL No. 8"]
[]
[null,"CEILINGS, PARTITIONS AND ACCESS FLOORING"]
[]
[null,"PREAMBLES"]
[]
[null,"For preambles refer to \"Model Preambles for Trades\""]
[]
[null,"SUPPLEMENTARY PREAMBLES"]
[]
[null,"Descriptions:"]
[]
[null,"Items described as \"nailed\" shall be deemed to be fixed with hardened steel nails or pins or shot pinned to brickwork or concrete"]
[]
[null,"Items described as \"plugged\" shall be deemed to include screwing to fibre, plastic or metal plugs at not exceeding 600mm centres, and where described as \"bolted\" the bolts have been given elsewhere"]
[]
[null,"BUDGETARY ALLOWANCES\n\nThe following budgetary allowances to be measured\nin accordance with the aforegoing and priced at\nscheduled rates"]
[]
[1,"Allow for general ceiling, partitions and access flooring works contingencies to be used as directed by the principal agent and to be measured in accordance with the aforegoing and priced at scheduled\nrates",null,"Item",null,{"v":350000,"d":"R350,000.00"}]
[]
[null,"NAILED UP CEILINGS"]
[]
[null,"Rhino gypsum plasterboard cornices"]
[]
[1,"75mm Coved cornices","m",1,0,{"$f":"E567*D567","v":0}]
[]
[null,"Insulation"]
[]
[2,"100mm Thick 'Isotherm' or other approved insulation material","m2",1,0,{"$f":"E571*D571","v":0}]
[]
[null,"SUSPENDED CEILINGS"]
[null,"600 x 600mm \"OWA\" or similar approved lay-in-tile pre-painted acoustic panels on \"OWA\" pre-painted exposed tee suspension system, including main and cross tees, necessary hangers, grids, etc:"]
[]
[3,"Horizontal ceilings suspended not exceeding 1m below concrete soffits","m2",1,0,{"$f":"E576*D576","v":0}]
[]
[null,"Cornices plugged to wall:"]
[]
[4,"Shadowline cornice fixed to plasterboard and wall complete ","m",1,0,{"$f":"E580*D580","v":0}]
[]
[null,"PARTITIONS, ETC."]
[]
[null,"'BPB Gypsum Rhinoboard Drywall System 15/60' or similar approved consisting of 58mm Drywall Ultrasteel studs at 600mm centres fixed into 58mm top and bottom track with one layer of 12,5mm taper-edged 'Rhino-Firestop' board on both sides fixed with 25mm Drywall screws and with 'Rhino Flam' mineral fibre blanket in cavity (1 hour fire rating):"]
[]
[5,"Partitioning 3m High with bottom and top tracks plugged","m",1,0,{"$f":"E586*D586","v":0}]
[]
[6,"Extra over partitioning 3m high for T-intersection","No",1,0,{"$f":"E588*D588","v":0}]
[]
[7,"Extra over partitioning 3m high for corner","No",1,0,{"$f":"E590*D590","v":0}]
[]
[8,"Extra over partitioning 3m high for vertical abutment","No",1,0,{"$f":"E592*D592","v":0}]
[]
[null,"Doors:"]
[]
[9,"Extra over 40mm semi-solid flush door 813 x 2 032mm high for Charcoal Grey powder coated aluminium door frame","No",1,0,{"$f":"E596*D596","v":0}]
[]
[null,"TOTAL CEILINGS, PARTITIONS AND ACCESS FLOORING",{"$nulls":3},{"$f":"SUM(F561:F596)","v":{"v":350000,"d":"R350,000.00"}}]
[]
[]
[]
[null,"BILL No. 9"]
[]
[null,"FLOOR COVERINGS, WALL LININGS, ETC."]
[]
[null,"PREAMBLES"]
[]
[null,"For preambles refer to \"Model Preambles for Trades\""]
[]
[null,"BUDGETARY ALLOWANCES\nNOMINATED/SELECTED SUBCONTRACT\nWORKS\n\nNote: The main contractor shall obtain at least three (3)\nquotations from reputable specialists for each of the\nworks described before appointment of any subcontractor\n\nThe following budgetary allowances to be measured\nin accordance with the aforegoing and priced at\nscheduled rates"]
[]
[null,"The following budgetary allowances provide for\nwork to be carried out by firms of specialists and\nappointed as domestic sub-contractors by the main\ncontractor"]
[]
[null,"FLOORS, WALLS, ETC."]
[]
[null,"Allow for general floor covering, wall linings works contingencies to be used as directed by the principal agent and to be measured in\naccordance with the aforegoing and priced at scheduled\nrates","Item",1,null,{"v":350000,"d":"R350,000.00"}]
[]
[1,"Profit on above item","%",2,{"$f":"F616*D618%","v":{"v":7000,"d":"R7,000.00"}},{"$f":"E618*D618","v":{"v":14000,"d":"R14,000.00"}}]
[]
[2,"Attendance on ditto","%",2,{"$f":"F616*D620%","v":{"v":7000,"d":"R7,000.00"}},{"$f":"E620*D620","v":{"v":14000,"d":"R14,000.00"}}]
[]
[]
[null,"TOTAL FLOOR COVERINGS",{"$nulls":3},{"$f":"SUM(F616:XFD621)","v":{"v":378000,"d":"R378,000.00"}}]
[]
[]
[]
[null,"BILL No. 10"]
[]
[null,"IRONMONGERY"]
[]
[null,"PREAMBLES"]
[]
[null,"For preambles refer to \"Model Preambles for Trades\""]
[]
[]
[null,"SUPPLEMENTARY PREAMBLES"]
[]
[null,"Finishes to ironmongery"]
[]
[null,"Where applicable finishes to ironmongery are indicated by suffixes in accordance with the following list: BS Satin bronze lacquered CH Chromium plated SC Satin chromium plated SE Silver enamelled GE Grey enamelled AS Anodised silver AB Anodised bronze AG Anodised gold ABL Anodised black PB Polished brass PL Polished and lacquered PT Epoxy coated SD Sanded"]
[]
[null,"BUDGETARY ALLOWANCES\n\nThe following budgetary allowances to be measured\nin accordance with the aforegoing and priced at\nscheduled rates"]
[]
[null,"Allow for general ironmongery works contingencies to be used as directed by the principal agent and to be measured in\naccordance with the aforegoing and priced at scheduled\nrates","Item",1,null,{"v":150000,"d":"R150,000.00"}]
[]
[null,"HINGES, BOLTS, ETC"]
[]
[null,"'Union' or similar approved hinges:"]
[]
[1,"100mm Brass hinge","No",1,0,{"$f":"E650*D650","v":0}]
[]
[null,"'DCLSA' or similar approved"]
[]
[2,"Mortice WC indicator turn withlock (194/01)","No",1,0,{"$f":"E654*D654","v":0}]
[]
[null,"LOCKS"]
[null,"'DCLSA' or similar approved"]
[]
[3,"Aries aluminium cylinder lockset (C9010C)","No",1,0,{"$f":"E659*D659","v":0}]
[]
[4,"Three lever lockset","No",1,0,{"$f":"E661*D661","v":0}]
[]
[null,"BATHROOM FITTINGS"]
[null,"'Kimberley-Clark' or similar approved:"]
[]
[5,"Electronic touch free hand cleanser skincare dispenser (white colour) Code 9214700","No",1,0,{"$f":"E666*D666","v":0}]
[]
[6,"Hand cleansing dispenser (code 921950)","No",1,0,{"$f":"E668*D668","v":0}]
[]
[null,"'Sanicorp' or similar approved toilet roll holder:"]
[]
[7,"White powder coated toilet roll holder fixed to wall complete","No",1,0,{"$f":"E672*D672","v":0}]
[]
[null,"'Franke' or similar approved:"]
[]
[8,"Grab rail fixed to wall according to manufacturer's specification (CNTX 650 code 359973)","No",1,0,{"$f":"E676*D676","v":0}]
[]
[9,"'Charman' IL3 cranked grab rail fixed to wall according to manufacturer's specification (CNTX 700 code 135)","No",1,0,{"$f":"E678*D678","v":0}]
[]
[null,"THE FOLLOWING IN IRONMONGERY TO WINDOWS"]
[]
[null,"CATCHES, STAYS, ETC"]
[]
[null,"Halcast or similar approved:"]
[]
[10,"Ref PS/50/300mm-BR brass casement stay fixed to steel windows","No",1,0,{"$f":"E686*D686","v":0}]
[]
[null,"SUNDRIES"]
[]
[null,"'DCLSA' or similar approved"]
[]
[11,"38mm Diameter rubber door stop","No",1,0,{"$f":"E692*D692","v":0}]
[]
[null,"TOTAL IRONMONGERY",{"$nulls":3},{"$f":"SUM(F644:F692)","v":{"v":150000,"d":"R150,000.00"}}]
[]
[null,"BILL No. 11"]
[]
[null,"METALWORK"]
[]
[null,"PREAMBLES"]
[]
[null,"For preambles refer to \"Model Preambles for Trades\""]
[]
[null,"Contractors to take note of the local procurement\nrequirement in this section of the work"]
[]
[null,"SUPPLEMENTARY PREAMBLES"]
[]
[null,"Descriptions"]
[]
[null,"Descriptions of bolts shall be deemed to include nuts and washers"]
[]
[null,"Descriptions of expansion anchors and bolts and chemical anchors and bolts shall be deemed to include nuts, washers and mortices in brickwork or concrete"]
[]
[null,"Metalwork described as\"holed for bolt(s)\" shall be deemed to exclude the bolts unless otherwise described"]
[]
[null,"BUDGETARY ALLOWANCES\n\nThe following budgetary allowances to be measured\nin accordance with the aforegoing and priced at\nscheduled rates"]
[]
[null,"Allow for general metal works contingencies to be used as directed by the principal agent and to be measured in\naccordance with the aforegoing and priced at scheduled\nrates","Item",1,null,{"v":150000,"d":"R150,000.00"}]
[]
[null,"GALVANISED SCREENS"]
[]
[1,"1700x1700mm Galvanised mesh panel comprising of 50x50x3m galvanised angle frame and 50x25x2.5mm galvanised welded fencing mesh","No",1,0,{"$f":"E722*D722","v":0}]
[]
[null,"GALVANISED STEEL GATES, SCREENS, ETC."]
[]
[null,"Galvanised mild steel security gates:"]
[]
[2,"Single gate approximate size 900 x 2 200mm high overall with fixed top panel size 900 x 200mm high, comprising of 60 x 40 x 2mm hollow section frame, middle rail and vertical bars at 100mm centres and fitted with a pair of suitable hinges bolted to wall with and including 100mm expansion bolts","No",1,0,{"$f":"E728*D728","v":0}]
[]
[null,"Galvanised mild steel burglar bars:"]
[]
[3,"Burglar bars to suit window opening approximate size 1 500 x 1 500mm high","No",1,0,{"$f":"E732*D732","v":0}]
[]
[null,"ALUMINIUM WINDOWS"]
[]
[null,"38mm Natural anodised aluminium casement system windows, glazed in accordance with part N glazing regulations using 6.38mm laminated safety glass including all ironmongery, glass and polyurethane sealant. A barrier is to be applied between the steel and aluminium sections and machine screws to be used during installation. An aluminium flat bar is to be used to clad the existing steel frames to the interior of the windows:"]
[]
[null,"Purpose made aluminium windows including ironmongery, glass and polyurethane sealant:"]
[]
[4,"Window 1 500 x 1 500mm high, with and including Opaque vinyl sheeting stuck to glass","No",1,0,{"$f":"E740*D740","v":0}]
[]
[5,"Window 1 500 x 1 000mm high","No",1,0,{"$f":"E742*D742","v":0}]
[]
[]
[null,"STEEL ROLLER SHUTTERS, ETC."]
[]
[null,"Action Steel or similar approved galvanised steel roller shutters fixed to brickwork or concrete:"]
[]
[6,"Electrically operated push up roller shutter for 1 800 x 2 200mm high opening","No",1,0,{"$f":"E749*D749","v":0}]
[]
[null,"HOT- DIP GALVANISED BALUSTRADES "]
[]
[null,"Mentis Inter-Link Handrail System comprising handrail, knee rail, stanchions, etc fixed to top of brick paving"]
[]
[7,"34,1mm Outside diameter handrailing (new item)","m",1,0,{"$f":"E755*D755","v":0}]
[]
[8,"MTA30 stanchion (new item)","No",1,0,{"$f":"E757*D757","v":0}]
[]
[9,"MST45 stanchion (new item)","No",1,0,{"$f":"E759*D759","v":0}]
[]
[10,"90 Degree straight closure - 500mm (new item)","No",1,0,{"$f":"E761*D761","v":0}]
[]
[11,"40 Degree stairway bend (new item)","No",1,0,{"$f":"E763*D763","v":0}]
[]
[null,"ALUMINIUM WINDOWS, DOORS, SHOPFRONT, ETC"]
[]
[null,"Work to existing powder coated aluminium shopfronts,\ndoors etc"]
[]
[12,"Service manually operated double door approximately","No",1,0,{"$f":"E769*D769","v":0}]
[null,"2120 x 2400mm high including opening, closing and"]
[null,"locking mechanisms etc"]
[]
[null,"TOTAL METALWORK",{"$nulls":3},{"$f":"SUM(F718:F771)","v":{"v":150000,"d":"R150,000.00"}}]
[]
[]
[null,"BILL No. 12"]
[]
[null,"PLASTERING"]
[]
[null,"PREAMBLES"]
[]
[null,"For preambles refer to \"Model Preambles for Trades\""]
[]
[null,"BUDGETARY ALLOWANCES\n\nThe following budgetary allowances to be measured\nin accordance with the aforegoing and priced at\nscheduled rates"]
[]
[null,"Allow for general plastering works contingencies to be used as directed by the principal agent and to be measured in\naccordance with the aforegoing and priced at scheduled\nrates","Item",1,null,{"v":250000,"d":"R250,000.00"}]
[]
[null,"SCREEDS"]
[]
[null,"Untinted granolithic on concrete:"]
[]
[1,"30mm Thick on floors and landings","m2",1,0,{"$f":"E792*D792","v":0}]
[]
[null,"Screeds wood floated on concrete"]
[]
[2,"30mm Thick on floors and landings","m2",1,0,{"$f":"E796*D796","v":0}]
[]
[3,"30mm Thick on floors and landings to falls and cross falls","m2",1,0,{"$f":"E798*D798","v":0}]
[]
[4,"Average 75mm thick on floors on waterproofing membrane to falls and currents","m2",1,0,{"$f":"E800*D800","v":0}]
[]
[null,"INTERNAL PLASTER"]
[]
[null,"Cement plaster on brickwork"]
[]
[5,"On walls","m2",1,0,{"$f":"E806*D806","v":0}]
[]
[6,"On narrow widths","m2",1,0,{"$f":"E808*D808","v":0}]
[]
[null,"Cement plaster on concrete:"]
[]
[7,"On ceilings and beams","m2",1,0,{"$f":"E812*D812","v":0}]
[]
[null,"Gypsum skim plaster on concrete:"]
[]
[8,"On soffit of slabs","m2",1,0,{"$f":"E816*D816","v":0}]
[]
[null,"EXTERNAL PLASTER"]
[]
[null,"Cement plaster on brickwork"]
[]
[9,"On walls","m2",1,0,{"$f":"E822*D822","v":0}]
[]
[10,"On narrow widths","m2",1,0,{"$f":"E824*D824","v":0}]
[]
[null,"One coat cement plaster on concrete:"]
[]
[11,"On sides and soffits of beams","m2",1,0,{"$f":"E828*D828","v":0}]
[]
[null,"Cement plaster on existing face brickwork "]
[]
[12,"On walls","m2",1,0,{"$f":"E832*D832","v":0}]
[]
[13,"On narrow widths","m2",1,0,{"$f":"E834*D834","v":0}]
[]
[null,"TOTAL PLASTERING",{"$nulls":3},{"$f":"SUM(F786:XFD834)","v":{"v":250000,"d":"R250,000.00"}}]
[]
[]
[null,"BILL No. 13"]
[]
[null,"TILING"]
[]
[null,"PREAMBLES"]
[]
[null,"For preambles refer to \"Model Preambles for Trades\""]
[]
[null,"SUPPLEMENTARY PREAMBLES"]
[]
[null,"Descriptions"]
[]
[null,"Unless described as \"fixed with adhesive to plaster (plaster elsewhere)\" descriptions of tiling on brick or concrete walls, columns, etc shall be deemed to include 1:4 cement plaster backing and descriptions of tiling on concrete floors etc shall be deemed to include 1:3 plaster bedding"]
[]
[null,"BUDGETARY ALLOWANCES\n\nThe following budgetary allowances to be measured\nin accordance with the aforegoing and priced at\nscheduled rates"]
[]
[null,"Allow for general tiling works contingencies to be used as directed by the principal agent and to be measured in\naccordance with the aforegoing and priced at scheduled\nrates","Item",1,null,{"v":250000,"d":"R250,000.00"}]
[]
[null,"WALL TILING"]
[]
[null,"Ceramic first grade tiles fixed with adhesive to plaster (plaster elsewhere). "]
[]
[1,"On walls","m2",1,0,{"$f":"E861*D861","v":0}]
[]
[2,"On narrow widths","m2",1,0,{"$f":"E863*D863","v":0}]
[]
[null,"FLOOR TILING"]
[]
[null,"Porcelain floor tiles fixed with adhesive to plaster (plaster elsewhere) and flush pointed with waterproof jointing compound. "]
[]
[3,"On floors and landings","m2",1,0,{"$f":"E869*D869","v":0}]
[]
[4,"On narrow widths","m2",1,0,{"$f":"E871*D871","v":0}]
[]
[5,"Skirting 150mm high","m",1,0,{"$f":"E873*D873","v":0}]
[]
[null,"Polish to existing floor tiles"]
[]
[6,"On floors and landings","m2",1,0,{"$f":"E877*D877","v":0}]
[]
[null,"CORNER PROTECTORS, DIVIDING STRIPS, ETC"]
[]
[7,"PVC round edge trim","m",1,0,{"$f":"E881*D881","v":0}]
[]
[null,"TOTAL TILING",{"$nulls":3},{"$f":"SUM(F855:F882)","v":{"v":250000,"d":"R250,000.00"}}]
[]
[]
[null,"BILL No. 14"]
[]
[null,"PLUMBING AND DRAINAGE"]
[]
[null,"PREAMBLES"]
[]
[null,"For preambles refer to \"Model Preambles for Trades\""]
[]
[null,"SUPPLEMENTARY PREAMBLES"]
[]
[null,"Sanitary fittings"]
[]
[null,"The replacement of all sanitry fittings shall be deemed to include all the nessary plumbing work."]
[]
[null,"Flush pans"]
[]
[null,"Flush pans shall have straight or side outlets and \"P\" or \"S\" traps as necessary"]
[]
[null,"Stainless steelbasins, sinks, wash troughs, urinals, etc."]
[]
[null,"Units shall have standard aprons on all exposed edges and tiling keys against walls where applicable"]
[]
[null,"Waste unions"]
[]
[null,"Descriptions of waste unions shall be deemed to include rubber or vulcanite plugs and chains fixed to fittings"]
[]
[null,"BUDGETARY ALLOWANCES\n\nThe following budgetary allowances to be measured\nin accordance with the aforegoing and priced at\nscheduled rates"]
[]
[null,"Allow for general plumbing and drainage works contingencies to be used as directed by the principal agent and to be measured in\naccordance with the aforegoing and priced at scheduled\nrates","Item",1,null,{"v":150000,"d":"R150,000.00"}]
[]
[1,"Profit on above item","%",2,{"$f":"F914*D916%","v":{"v":3000,"d":"R3,000.00"}},{"$f":"E916*D916","v":{"v":6000,"d":"R6,000.00"}}]
[]
[2,"Attendance on ditto","%",2,{"$f":"F914*D918%","v":{"v":3000,"d":"R3,000.00"}},{"$f":"E918*D918","v":{"v":6000,"d":"R6,000.00"}}]
[]
[]
[null,"TOTAL PLUMBING AND DRAINAGE",{"$nulls":3},{"$f":"SUM(F914:F920)","v":{"v":162000,"d":"R162,000.00"}}]
[]
[]
[null,"BILL No. 15"]
[]
[null,"GLAZING"]
[]
[null,"PREAMBLES"]
[]
[null,"For preambles refer to \"Model Preambles for Trades\""]
[]
[null,"BUDGETARY ALLOWANCES\n\nThe following budgetary allowances to be measured\nin accordance with the aforegoing and priced at\nscheduled rates"]
[]
[null,"Allow for general glazing works contingencies to be used as directed by the principal agent and to be measured in\naccordance with the aforegoing and priced at scheduled\nrates","Item",1,null,{"v":50000,"d":"R50,000.00"}]
[]
[]
[null,"GLAZING TO STEEL WITH PUTTY"]
[]
[null,"Replace damaged window panes including removing old pane and putty"]
[]
[1,"Panes exceeding 0,1m2 and not exceeding 0,5m2","m2",1,0,{"$f":"E941*D941","v":0}]
[]
[null,"Sandblasting:"]
[]
[null,"Opaque sandblast translucent embossed vinyl film installed in accordance with manufacturer's instructions:"]
[]
[2,"On windows","m2",1,0,{"$f":"E947*D947","v":0}]
[]
[null,"TOPS, SHELVES, DOORS, MIRRORS, ETC."]
[]
[null,"6mm Silvered float glass copper backed mirrors, holed for and fixed with chromium plated dome capped mirror screws with rubber buffers to plugs in brickwork or concrete:"]
[]
[3,"Mirror 300 x 400mm high with 4 screws","No",1,0,{"$f":"E953*D953","v":0}]
[]
[null,"TOTAL GLAZING",{"$nulls":3},{"$f":"F941+F947+F953+F934","v":{"v":50000,"d":"R50,000.00"}}]
[]
[]
[null,"BILL No. 16"]
[]
[null,"PAINTWORK"]
[]
[null,"PREAMBLES"]
[]
[null,"For preambles refer to \"Model Preambles for Trades\""]
[]
[null,"PREPARATORY WORK TO EXISTING WORK"]
[]
[null,"Previously painted plastered surfaces"]
[]
[null,"Surfaces shall be thoroughly washed down and allowed to dry completely before any paint is applied. Blistered or peeling paint shall be completely removed and cracks shall be opened, filled with a suitable filler and finished smooth"]
[]
[null,"Previously painted metal surfaces "]
[]
[null,"Surfaces shall be thoroughly rubbed and cleaned down.  Blistered or peeling paint shall be completely removed down to bare metal"]
[]
[null,"Previously painted wood surfaces"]
[]
[null,"Surfaces shall be thoroughly cleaned down.  Blistered or peeling paint shall be completely removed and cracks and crevices shall be primed, filled with suitable filler and finished smooth"]
[]
[null,"BUDGETARY ALLOWANCES\n\nThe following budgetary allowances to be measured\nin accordance with the aforegoing and priced at\nscheduled rates"]
[]
[null,"Allow for general paint works contingencies to be used as directed by the principal agent and to be measured in\naccordance with the aforegoing and priced at scheduled\nrates","Item",1,null,{"v":250000,"d":"R250,000.00"}]
[]
[null,"PAINTWORK ETC TO NEW WORK"]
[null,"ON FLOATED PLASTER"]
[]
[null,"One coat sealer and two coats interior quality PVA emulsion paint"]
[]
[1,"On internal walls","m2",1,0,{"$f":"E989*D989","v":0}]
[]
[2,"On external walls","m2",1,0,{"$f":"E991*D991","v":0}]
[]
[3,"On ceilings and beams","m2",1,0,{"$f":"E993*D993","v":0}]
[]
[null,"ON PLASTER BOARD"]
[]
[null,"One coat sealer and two coats interior quality PVA emulsion paint"]
[]
[4,"On partitioning","m2",1,0,{"$f":"E999*D999","v":0}]
[]
[null,"ON FIBRE-CEMENT"]
[]
[null,"One coat primer and two coats exterior quality PVC emulsion paint in colours which have a value of 7 or less on the Munsell system in accordance with SABS 1091"]
[]
[5,"On fascias and barge boards","m2",1,0,{"$f":"E1005*D1005","v":0}]
[]
[null,"ON METAL"]
[]
[null,"Wash down thoroughly with degreaser and rinse with water removing all traces of degreaser. Allow to dry and prime with one coat primer and two coats polyurethane enamel paint on steel:"]
[]
[6,"On members of lattice columns and beams","m2",1,0,{"$f":"E1011*D1011","v":0}]
[]
[null,"ON WOOD"]
[]
[null,"One coat wood primer, one undercoat and two coats alkyd enamel paint"]
[]
[7,"On doors","m2",1,0,{"$f":"E1017*D1017","v":0}]
[]
[8,"On door frames etc","m2",1,0,{"$f":"E1019*D1019","v":0}]
[]
[9,"On skirtings, rails, etc not exceeding 300 mm girth","m",1,0,{"$f":"E1021*D1021","v":0}]
[]
[null,"PAINTWORK ETC TO PREVIOUSLY PAINTED WORK"]
[]
[null,"ON FLOATED PLASTER"]
[]
[null,"One coat primer and two coats interior quality PVA emulsion paint"]
[]
[10,"On internal walls","m2",1,0,{"$f":"E1029*D1029","v":0}]
[]
[null,"ON FIBRE-CEMENT, ETC."]
[]
[null,"Prepare surfaces and remove all loose material, apply one coat plaster primer and two coats polyurethane enamel paint:"]
[]
[11,"On eaves soffits","m2",1,0,{"$f":"E1035*D1035","v":0}]
[]
[null,"ON METAL"]
[null,"One coat self-etching primer, one undercoat and 2 coats alkyd enamel paint in colours which have a value of 7 or less on the Munsell system in accordance with SABS 1091 on galvanized steel"]
[]
[12,"On windows","m2",1,0,{"$f":"E1040*D1040","v":0}]
[]
[13,"On columns and beams","m2",1,0,{"$f":"E1042*D1042","v":0}]
[]
[14,"On members of lattice columns and beams","m2",1,0,{"$f":"E1044*D1044","v":0}]
[]
[15,"On sides, columns, balustrading, etc of overhead bridge ","m2",1,0,{"$f":"E1046*D1046","v":0}]
[]
[null,"ON PAVING, ASPHALT, ETC"]
[null,"Road marking paint"]
[]
[16,"100mm white line on roadwork","m",1,0,{"$f":"E1051*D1051","v":0}]
[]
[null,"TOTAL PAINTWORK",{"$nulls":3},{"$f":"SUM(F982:F1052)","v":{"v":250000,"d":"R250,000.00"}}]
[]
[]
[null,"BILL No. 17"]
[]
[null,"SPECIALIST INSTALLATIONS"]
[]
[null,"SUPPLEMENTARY PREAMBLES"]
[]
[null,"General"]
[]
[null,"Work for which budgetary allowances are provided will,\nunless otherwise stated, be measured and valued in\naccordance with the contract prescript and deducted in whole or in part if not required without any compensation for loss or profit on\nthe said allowances."]
[]
[null,"Provisional sums are net and are for material and equipment supplied and installed complete by firms of specialists."]
[]
[null,"ELECTRICAL, ELECTRONIC AND MECHANICAL\nINSTALLATIONS, ECT."]
[]
[null,"Allow for general specialists installation (i.e. Electrical, Electronic and Mechanical works contingencies to be used as directed by the principal agent and to be measured in accordance with the aforegoing and priced at scheduled rates","Item",1,null,{"v":350000,"d":"R350,000.00"}]
[]
[1,"Profit on above item","%",2,{"$f":"F1070*D1072%","v":{"v":7000,"d":"R7,000.00"}},{"$f":"E1072*D1072","v":{"v":14000,"d":"R14,000.00"}}]
[]
[2,"Attendance on ditto","%",2,{"$f":"F1070*D1074%","v":{"v":7000,"d":"R7,000.00"}},{"$f":"E1074*D1074","v":{"v":14000,"d":"R14,000.00"}}]
[]
[]
[null,"TOTAL SPECIALIST INSTALLATIONS",{"$nulls":3},{"$f":"SUM(F1070:F1076)","v":{"v":378000,"d":"R378,000.00"}}]
[]
[]
["BILL\nNO","SUMMARY OF BILL OF QUANTITIES:"]
[]
[]
[1,"Alterations",null,null,{"$f":"F198","v":{"v":300000,"d":"R300,000.00"}}]
[]
[2,"Earthworks",null,null,{"$f":"F251","v":{"v":200000,"d":"R200,000.00"}}]
[]
[3,"Concrete, Formwork and Reinforcement",null,null,{"$f":"F327","v":{"v":200000,"d":"R200,000.00"}}]
[]
[4,"Masonry",null,null,{"$f":"F390","v":{"v":350000,"d":"R350,000.00"}}]
[]
[5,"Waterproofing",null,null,{"$f":"F435","v":{"v":250000,"d":"R250,000.00"}}]
[]
[6,"Roof Covering",null,null,{"$f":"F485","v":{"v":250000,"d":"R250,000.00"}}]
[]
[7,"Carpentry & Joinery",null,null,{"$f":"F540","v":{"v":450000,"d":"R450,000.00"}}]
[]
[8,"Ceilings, Partitions and Access Flooring",null,null,{"$f":"F598","v":{"v":350000,"d":"R350,000.00"}}]
[]
[9,"Floor Covering",null,null,{"$f":"F623","v":{"v":378000,"d":"R378,000.00"}}]
[]
[10,"Ironmongery",null,null,{"$f":"F694","v":{"v":150000,"d":"R150,000.00"}}]
[]
[11,"Metalwork",null,null,{"$f":"F773","v":{"v":150000,"d":"R150,000.00"}}]
[]
[12,"Plastering",null,null,{"$f":"F836","v":{"v":250000,"d":"R250,000.00"}}]
[]
[13,"Tiling",null,null,{"$f":"F883","v":{"v":250000,"d":"R250,000.00"}}]
[]
[14,"Plumbing and Drainage",null,null,{"$f":"F921","v":{"v":162000,"d":"R162,000.00"}}]
[]
[15,"Glazing",null,null,{"$f":"F955","v":{"v":50000,"d":"R50,000.00"}}]
[]
[16,"Paintwork",null,null,{"$f":"F1053","v":{"v":250000,"d":"R250,000.00"}}]
[]
[17,"Specialists Installations",null,null,{"$f":"F1077","v":{"v":378000,"d":"R378,000.00"}}]
[]
[null,null,"Total Summary","R",{"$f":"SUM(E1080:E1116)","v":{"v":4368000,"d":"4,368,000.00"}}]
[]
[]
[null,null,"Add: Health and Safety","R"]
[]
[null,null,"Add: Preliminaries & General","R"]
[]
[null,null,"Year 1: Sub Total","R",{"$f":"SUM(E1117:E1122)","v":{"v":4368000,"d":"4,368,000.00"}}]
[]
[null,null,"VAT @ 15%",null,{"$f":"E1124*15%","v":{"v":655200,"d":"655,200.00"}}]
[]
[null,null,"Year 1: CONTRACT PRICE","R",{"$f":"SUM(E1124:E1127)","v":{"v":5023200,"d":"5,023,200.00"}},"A"]
[]
[null,null,"Add. Year 2 CONTRACT PRICE ADJUSTMENT (CPA) (7%)","R",{"$f":"F1158","v":{"v":4673760,"d":"4,673,760.00"}}]
[]
[null,null,"VAT @ 15%","R",{"$f":"E1130*15%","v":{"v":701064,"d":"701,064.00"}}]
[]
[null,null,"Year 2: CONTRACT PRICE","R",{"$f":"SUM(E1130:E1133)","v":{"v":5374824,"d":"5,374,824.00"}},"B"]
[]
[null,null,"Add. Year 3 CONTRACT PRICE ADJUSTMENT (CPA) (7%)","R",{"$f":"F1159","v":{"v":5751061.68,"d":"5,751,061.68"}}]
[]
[null,null,"VAT @ 15%","R",{"$f":"E1136*15%","v":{"v":862659.252,"d":"862,659.25"}}]
[]
[null,null,"Year 3: CONTRACT PRICE","R",{"$f":"SUM(E1136:E1139)","v":{"v":6613720.932,"d":"6,613,720.93"}},"C"]
[]
[null,null,"TOTAL TENDER AMOUNT (A + B + C)","R",{"$f":"SUM(E1128,E1134,E1140)","v":{"v":17011744.932,"d":"17,011,744.93"}}]
[]
["NOTE 1:","Only Electronic Typed BoQ will be excepted (Print & Sign for submission)"]
[":","Unlocking the excel document and editing/changes to other information may lead to non responsive"]
[":","Print & Sign for submission "]
[":","Share Original BoQ \"Electronic Version\" via Memory Stick/Card (For internal use only)"]
[]
["NOTE 2:","Year 1 Contract Price Award is imminent (Fiscal Budget is available)"]
[]
["NOTE 3:","Year 2 Contract Price Award is subject to Fiscal Budget availability."]
[]
["NOTE 4:","Year 3 Contract Price Award is subject to Fiscal Budget availability."]
[]
["Please note that failure to comply with the BoQ conditions will invalidate your proposal (if Tender mandatory/prequalification documents are not returned then consider your BoQ returnable not accepted).\n\nI …………………………………………………………………………………................ in my capacity as ……………………….....……….....……...............…………. certify that the information supplied is correct and I have read and understood the AIDC general terms and conditions, and I accept them.\n\nSignature: …………………………….……….………………….\n\nCompany Name:\n\nCompany registration no:\n\nCSD registration no:"]
[]
[]
[null,"Year 2 CPA",null,7,{"$f":"E1124*D1158%","v":{"v":305760,"d":"305,760.00"}},{"$f":"E1124+E1158","v":{"v":4673760,"d":"4,673,760.00"}}]
[null,"Year 3 CPA",null,7,{"$f":"E1134*D1159%","v":{"v":376237.68000000005,"d":"376,237.68"}},{"$f":"E1134+E1159","v":{"v":5751061.68,"d":"5,751,061.68"}}]